bitfinex-derivatives/quotes_ETHF0:USTF0_20240920
["timestamp","ask_amount","ask_price","bid_price","bid_amount"]
[1726839539398,0.39436,2535.6,2535.5,0.3876]
[1726839539602,0.39435,2535.7,2535.5,0.3876]
[1726839540102,0.39436,2535.6,2535.5,0.3876]
[1726839540487,3.2078,2535.9,2535.5,0.3876]
[1726839540488,0.39435,2535.7,2535.5,0.3876]
[1726839540689,0.39436,2535.6,2535.5,0.3876]
[1726839540994,0.3944,2535.4,2535.2,0.4084]
[1726839541200,3.2078,2535.9,2535.2,0.4084]
[1726839541501,3.2078,2535.9,2535.3,3.2078]
[1726839541700,0.39434,2535.8,2535.5,0.39437]
[1726839542003,0.39433,2535.8,2535.5,0.39436]
[1726839542195,0.39433,2535.8,2535.5,0.39437]
[1726839542396,0.39433,2535.8,2535.6,0.39436]
[1726839542598,3.60212,2535.9,2535.6,0.39436]
[1726839542802,0.39433,2535.8,2535.6,0.39436]
[1726839543609,0.39432,2535.9,2535.6,0.39436]
[1726839543804,0.39433,2535.8,2535.7,0.3795]
[1726839543997,0.3943,2536.0,2535.7,0.3795]
[1726839544198,0.3943,2536.0,2535.8,0.39433]
[1726839544494,0.3943,2536.0,2535.7,0.77383]
[1726839544696,4.121,2536.2,2535.7,0.3795]
[1726839544892,4.51527,2536.2,2536.0,0.39429]
[1726839545095,4.51527,2536.2,2535.9,0.3943]
[1726839545096,4.121,2536.2,2535.9,0.3943]
[1726839545291,4.121,2536.2,2536.0,0.39429]
[1726839545292,4.51528,2536.2,2536.0,0.39429]
[1726839545690,4.121,2536.2,2536.1,0.39428]
[1726839545897,4.121,2536.2,2535.8,0.4024]
[1726839545898,4.51527,2536.2,2535.8,0.4024]
[1726839546194,4.51527,2536.2,2536.0,0.3943]
[1726839546701,0.3943,2536.0,2535.8,0.79672]
[1726839547107,5.10669,2536.2,2535.8,0.4024]
[1726839547299,0.39431,2536.0,2535.8,0.4024]
[1726839547703,0.3943,2536.0,2535.8,0.79672]
[1726839547902,0.39429,2536.1,2535.8,0.79673]
[1726839548210,4.51528,2536.2,2535.9,0.39431]
[1726839548404,4.121,2536.2,2535.8,0.4024]
[1726839548608,0.4128,2536.6,2535.9,3.2078]
[1726839548809,0.39424,2536.4,2536.0,0.39429]
[1726839549008,0.4128,2536.6,2535.9,3.6021]
[1726839549306,0.4128,2536.6,2535.8,4.1924]
[1726839549307,0.39427,2536.2,2535.8,0.79672]
[1726839549707,0.98559,2536.4,2535.8,0.4024]
[1726839550007,0.39428,2536.1,2535.7,0.77384]
[1726839550209,0.39429,2536.1,2535.7,0.77384]
[1726839550409,0.98559,2536.4,2535.7,0.3795]
[1726839550708,0.39428,2536.1,2535.7,0.77383]
[1726839550897,0.3943,2536.0,2535.7,0.77383]
[1726839551103,0.39429,2536.1,2535.7,0.77383]
[1726839551302,0.3943,2536.0,2535.7,0.77383]
[1726839551608,0.98567,2536.3,2535.7,0.3795]
[1726839551806,0.39427,2536.2,2535.9,0.39431]
[1726839552108,4.121,2536.5,2535.7,0.3795]
[1726839552310,0.39427,2536.2,2535.9,0.39431]
[1726839552811,4.121,2536.5,2535.7,0.3795]
[1726839553012,0.39428,2536.1,2535.8,0.39432]
[1726839553203,5.10658,2536.5,2535.7,0.3795]
[1726839553407,0.98559,2536.4,2535.8,0.39432]
[1726839553713,0.39429,2536.1,2535.8,0.39432]
[1726839554016,0.3943,2536.0,2535.7,0.77384]
[1726839554307,0.39433,2535.8,2535.7,0.3795]
[1726839554516,0.39432,2535.9,2535.7,0.3795]
[1726839554904,0.3991,2536.1,2535.7,0.3795]
[1726839555103,0.39432,2535.9,2535.7,0.3795]
[1726839555307,0.39432,2535.9,2535.5,0.39436]
[1726839555808,0.39433,2535.8,2535.3,4.3887]
[1726839556009,0.39432,2535.9,2535.5,0.39437]
[1726839556313,0.8016,2536.0,2535.3,4.3887]
[1726839556614,0.3991,2536.1,2535.6,3.2078]
[1726839556812,0.39426,2536.3,2536.0,0.39429]
[1726839557606,0.39425,2536.3,2536.0,0.39429]
[1726839557811,0.387,2536.6,2536.1,0.3816]
[1726839558001,0.39423,2536.5,2536.2,0.39426]
[1726839558311,0.39424,2536.4,2536.1,0.3816]
[1726839558509,0.98556,2536.5,2536.1,0.3816]
[1726839558715,0.387,2536.6,2536.1,0.3816]
[1726839558716,1.37253,2536.6,2536.1,0.3816]
[1726839559224,0.98556,2536.5,2535.9,0.7877]
[1726839559407,0.39428,2536.1,2535.9,0.3864]
[1726839559915,3.2078,2536.5,2536.0,0.39429]
[1726839560212,3.2078,2536.5,2535.9,0.3864]
[1726839560416,3.2078,2536.5,2536.2,0.39425]
[1726839560710,3.60202,2536.5,2536.1,0.39427]
[1726839560916,3.2078,2536.5,2536.2,0.39426]
[1726839561506,3.60202,2536.5,2536.2,0.39426]
[1726839561801,0.387,2536.6,2536.3,0.39424]
[1726839562005,0.7812,2536.6,2536.3,0.39424]
[1726839562209,0.39424,2536.4,2536.2,0.3797]
[1726839562411,0.387,2536.6,2536.2,0.3797]
[1726839562715,0.387,2536.6,2535.9,0.3864]
[1726839562920,0.98556,2536.5,2536.0,0.3929]
[1726839563116,0.39426,2536.3,2536.0,0.3929]
[1726839563415,0.98559,2536.4,2536.0,0.3929]
[1726839563601,0.98559,2536.4,2535.8,3.2078]
[1726839563602,0.39431,2535.9,2535.8,3.2078]
[1726839563805,0.39431,2535.9,2535.7,0.4046]
[1726839564105,0.39431,2536.0,2535.7,0.79893]
[1726839565013,0.39429,2536.1,2535.7,0.4046]
[1726839565317,0.3943,2536.0,2535.7,0.4046]
[1726839565510,0.3943,2536.0,2535.7,0.79894]
[1726839565905,0.98558,2536.5,2535.9,0.3943]
[1726839566119,0.98563,2536.3,2535.8,3.47433]
[1726839566418,0.98563,2536.3,2535.8,3.08]
[1726839566714,0.39429,2536.1,2535.8,3.08]
[1726839567119,0.98563,2536.3,2535.8,3.08]
[1726839567321,0.39429,2536.1,2535.8,3.47433]
[1726839567518,0.39428,2536.2,2535.8,3.47433]
[1726839567721,3.2078,2536.4,2535.8,3.47432]
[1726839568215,0.39428,2536.1,2536.0,3.08]
[1726839568415,0.39428,2536.1,2535.8,3.47433]
[1726839568809,0.39429,2536.1,2535.7,0.79893]
[1726839569122,0.39429,2536.1,2535.8,3.47433]
[1726839569306,0.98563,2536.3,2535.8,3.08]
[1726839569515,0.39429,2536.1,2535.8,3.47432]
[1726839570822,0.98563,2536.3,2535.8,3.47432]
[1726839570823,0.3943,2536.0,2535.8,3.47432]
[1726839571018,0.39429,2536.1,2535.8,3.47432]
[1726839571225,0.98567,2536.2,2535.8,3.08]
[1726839571416,0.39431,2535.9,2535.8,3.08]
[1726839571624,0.98572,2536.1,2535.6,6.2878]
[1726839571924,0.39432,2535.9,2535.6,6.68215]
[1726839572421,0.39432,2535.9,2535.7,0.39434]
[1726839572621,0.98561,2536.4,2535.8,3.47432]
[1726839572622,0.3943,2536.0,2535.8,3.47432]
[1726839573023,0.98559,2536.4,2535.8,3.08]
[1726839573024,0.39429,2536.1,2535.8,3.08]
[1726839573227,0.3943,2536.0,2535.8,3.47432]
[1726839573427,0.39427,2536.2,2536.0,0.39429]
[1726839573634,0.39427,2536.2,2536.1,3.489]
[1726839574235,0.39426,2536.3,2536.1,3.88327]
[1726839574930,0.39427,2536.2,2536.1,3.489]
[1726839575128,0.39427,2536.2,2536.1,0.409]
[1726839575329,0.3943,2536.0,2535.9,3.4778]
[1726839575527,0.39427,2536.2,2535.9,3.4778]
[1726839575528,0.39428,2536.1,2535.9,3.4778]
[1726839575731,0.39428,2536.1,2535.9,0.3978]
[1726839575924,0.39427,2536.2,2535.9,0.3978]
[1726839575925,0.3943,2536.0,2535.9,0.3978]
[1726839576132,0.39429,2536.1,2535.9,0.3978]
[1726839576336,0.3943,2536.0,2535.9,0.3978]
[1726839576531,0.39428,2536.1,2535.9,0.79211]
[1726839576731,0.3943,2536.0,2535.9,0.3978]
[1726839576934,0.98569,2536.2,2535.9,0.3978]
[1726839577440,0.3943,2536.0,2535.9,0.3978]
[1726839578036,0.3943,2536.0,2535.7,0.77014]
[1726839578243,0.3943,2536.0,2535.7,0.3758]
[1726839578539,0.98569,2536.2,2535.8,0.39432]
[1726839578735,0.3943,2536.0,2535.8,0.39432]
[1726839579039,0.39427,2536.2,2535.9,3.4743]
[1726839579242,0.39427,2536.2,2536.0,0.39429]
[1726839579539,0.39427,2536.2,2535.9,3.4743]
[1726839579836,0.39424,2536.4,2536.1,3.08]
[1726839580032,0.39425,2536.3,2536.1,3.47428]
[1726839580237,0.98557,2536.5,2536.1,3.08]
[1726839580539,0.39426,2536.3,2536.1,3.08]
[1726839580736,0.39427,2536.2,2535.9,3.4743]
[1726839580926,0.39427,2536.2,2536.0,0.3943]
[1726839581126,0.9856,2536.4,2535.9,3.08]
[1726839581331,0.39429,2536.1,2535.9,0.39431]
[1726839581844,0.98559,2536.4,2535.9,3.08]
[1726839582033,0.3943,2536.0,2535.9,3.08]
[1726839582232,0.98567,2536.2,2535.8,3.60212]
[1726839582233,0.39431,2535.9,2535.8,3.2078]
[1726839582433,1.3801,2535.9,2535.8,3.2078]
[1726839583033,1.3801,2535.9,2535.4,0.3862]
[1726839583034,0.39437,2535.5,2535.4,0.3862]
[1726839583237,0.39446,2535.0,2534.9,3.2078]
[1726839583434,0.98602,2535.3,2534.7,0.2051]
[1726839583435,0.39448,2534.8,2534.7,0.2051]
[1726839583635,0.39448,2534.8,2534.5,0.389]
[1726839583636,3.08,2534.8,2534.1,3.08]
[1726839583943,3.5985,2535.2,2534.6,3.08]
[1726839584138,0.39448,2534.9,2534.6,3.08]
[1726839584342,0.3907,2535.2,2534.6,3.08]
[1726839584343,0.39449,2534.8,2534.6,3.08]
[1726839584536,0.39449,2534.8,2534.4,3.08]
[1726839584739,6.6785,2535.2,2534.4,3.08]
[1726839584932,6.6785,2535.2,2534.2,3.08]
[1726839584933,3.2078,2534.9,2534.2,3.08]
[1726839585138,0.39453,2534.5,2534.1,3.5968]
[1726839585332,0.39452,2534.6,2534.1,3.5968]
[1726839586036,0.39452,2534.6,2534.2,3.08]
[1726839586338,0.3767,2534.8,2534.4,3.08]
[1726839587244,0.39447,2534.9,2534.6,3.08]
[1726839587435,0.3835,2535.1,2534.4,3.08]
[1726839587635,0.3835,2535.1,2534.6,3.08]
[1726839587839,0.77794,2535.1,2534.6,3.08]
[1726839588544,0.3835,2535.1,2534.6,3.08]
[1726839588945,0.77795,2535.1,2534.6,3.08]
[1726839589151,0.3835,2535.1,2534.6,3.08]
[1726839589538,3.2078,2535.2,2535.0,3.08]
[1726839589843,0.3944,2535.4,2535.0,6.2878]
[1726839590146,3.5977,2535.6,2535.0,6.2878]
[1726839590647,0.39437,2535.5,2535.0,6.2878]
[1726839590946,0.39439,2535.4,2535.0,6.2878]
[1726839591448,3.5977,2535.6,2535.0,6.2878]
[1726839591449,3.5977,2535.6,2535.2,3.08]
[1726839591751,3.99206,2535.6,2535.2,3.08]
[1726839592137,0.3899,2535.6,2535.5,3.08]
[1726839592346,0.39433,2535.8,2535.5,3.08]
[1726839592939,3.5981,2536.0,2535.7,3.08]
[1726839593343,3.9924,2536.0,2535.7,3.08]
[1726839593643,3.5981,2536.0,2535.7,3.08]
[1726839594045,0.39434,2535.8,2535.5,3.08]
[1726839594348,0.39434,2535.8,2535.3,3.08]
[1726839594349,0.39438,2535.5,2535.3,3.08]
[1726839594652,0.39437,2535.6,2535.3,3.08]
[1726839595151,0.39438,2535.5,2535.3,3.08]
[1726839595553,0.39437,2535.6,2535.3,3.08]
[1726839595850,0.98579,2535.9,2535.3,3.08]
[1726839596052,0.39436,2535.7,2535.2,4.18442]
[1726839596446,3.5981,2536.0,2535.2,4.18442]
[1726839596757,0.39437,2535.6,2535.2,3.79]
[1726839597244,0.39438,2535.5,2535.2,3.79]
[1726839597439,0.39435,2535.7,2535.2,3.79]
[1726839597745,0.39436,2535.6,2535.2,4.18441]
[1726839597948,0.39437,2535.6,2535.2,4.18442]
[1726839598343,0.39438,2535.5,2535.2,3.79]
[1726839598649,3.5981,2536.0,2535.1,0.4031]
[1726839598843,0.39442,2535.2,2535.1,0.4031]
[1726839599043,0.39445,2535.1,2534.8,0.7801]
[1726839599239,0.39445,2535.1,2534.8,1.1665]
[1726839599442,0.98605,2535.3,2534.8,1.1665]
[1726839599644,0.98606,2535.2,2534.8,1.1665]
[1726839599852,0.39446,2535.0,2534.8,1.1665]
[1726839600149,0.4111,2535.3,2534.8,1.1665]
[1726839600353,0.4111,2535.3,2534.2,3.79]
[1726839600354,3.6189,2535.3,2534.2,3.79]
[1726839600560,1.39713,2535.3,2534.6,0.39451]
[1726839600745,0.39451,2534.7,2534.4,3.5942]
[1726839600946,3.2078,2534.9,2534.4,3.5942]
[1726839601146,3.2078,2534.9,2534.4,0.3864]
[1726839601147,4.19398,2534.9,2534.4,0.3864]
[1726839601347,3.2078,2535.2,2534.4,0.3864]
[1726839601552,0.39452,2534.6,2534.4,0.3864]
[1726839601757,4.19399,2534.9,2534.4,0.3864]
[1726839601758,0.39449,2534.8,2534.4,0.78094]
[1726839601955,0.39449,2534.8,2534.4,0.3864]
[1726839602655,0.39444,2535.1,2534.4,0.3864]
[1726839602860,0.3945,2534.7,2534.4,0.3864]
[1726839603164,0.39449,2534.8,2534.4,0.3864]
[1726839603352,0.39452,2534.6,2534.4,0.3864]
[1726839603552,0.39453,2534.5,2534.4,0.3864]
[1726839603761,3.5946,2534.9,2534.4,0.3864]
[1726839604257,0.39452,2534.6,2534.4,0.3864]
[1726839604452,1.37301,2534.9,2534.4,0.3864]
[1726839604653,0.39452,2534.6,2534.4,0.3864]
[1726839604965,0.39451,2534.7,2534.4,0.3864]
[1726839605350,0.3868,2534.9,2534.4,0.78094]
[1726839605550,0.3868,2534.9,2534.4,0.3864]
[1726839605756,0.39451,2534.7,2534.4,0.3864]
[1726839606160,0.3868,2534.9,2534.2,4.0051]
[1726839606460,3.2078,2534.6,2533.8,0.39464]
[1726839606661,0.98633,2534.5,2533.8,0.39463]
[1726839606858,0.3963,2534.5,2533.9,0.39462]
[1726839607061,0.3963,2534.5,2533.7,5.35225]
[1726839607062,0.3946,2534.1,2533.7,5.35225]
[1726839607356,0.98641,2534.3,2533.7,4.9576]
[1726839607557,0.3946,2534.1,2533.7,5.35225]
[1726839607762,3.2078,2534.3,2533.7,1.1676]
[1726839607968,0.98645,2534.3,2533.7,1.1676]
[1726839608149,0.98645,2534.2,2533.7,1.1676]
[1726839608358,0.39462,2534.0,2533.7,1.1676]
[1726839608658,0.39458,2534.2,2533.7,1.56224]
[1726839608855,3.5842,2534.3,2533.7,1.1676]
[1726839608856,0.39462,2534.0,2533.7,1.1676]
[1726839609056,0.3946,2534.1,2533.7,1.56224]
[1726839609364,0.39462,2534.0,2533.7,1.1676]
[1726839609559,0.39463,2533.9,2533.7,1.1676]
[1726839609766,0.39464,2533.8,2533.7,0.4081]
[1726839609957,3.2078,2534.0,2533.3,0.7623]
[1726839610265,0.39468,2533.6,2533.3,0.3761]
[1726839610564,0.3808,2533.9,2533.3,0.3761]
[1726839610565,0.98661,2533.8,2533.3,0.3761]
[1726839610763,3.2078,2533.7,2533.3,0.3761]
[1726839611262,0.39471,2533.4,2533.2,0.4043]
[1726839611854,0.39472,2533.3,2533.2,0.4043]
[1726839612056,0.39473,2533.2,2533.1,0.3862]
[1726839612463,0.39467,2533.6,2533.1,0.3862]
[1726839612760,0.39471,2533.4,2533.1,0.3862]
[1726839613062,0.3962,2533.7,2533.1,0.3862]
[1726839613063,4.59068,2533.7,2533.1,0.3862]
[1726839613369,0.39471,2533.4,2533.1,0.3862]
[1726839613661,0.39469,2533.5,2533.1,0.3862]
[1726839613858,0.39471,2533.4,2533.1,0.3862]
[1726839614257,0.39469,2533.5,2533.1,0.3862]
[1726839614561,0.39472,2533.3,2533.1,0.3862]
[1726839615063,0.39472,2533.3,2532.4,11.43947329]
[1726839615064,0.98688,2533.1,2532.5,3.2078]
[1726839615365,0.98688,2533.1,2532.4,0.77215]
[1726839615366,0.3948,2532.8,2532.4,0.77215]
[1726839615660,1.38458,2533.1,2532.4,0.3773]
[1726839615861,0.3948,2532.8,2532.4,0.77215]
[1726839616064,0.98697,2532.9,2532.4,0.3773]
[1726839616264,0.98707,2532.7,2532.1,0.3949]
[1726839616465,0.98707,2532.7,2532.0,0.7494]
[1726839616657,0.98707,2532.7,2532.0,1.14432]
[1726839616854,0.3949,2532.1,2532.0,0.7494]
[1726839617068,0.3949,2532.2,2532.0,0.3773]
[1726839617265,0.39488,2532.3,2532.0,0.3773]
[1726839617465,0.3949,2532.2,2532.0,0.3773]
[1726839617668,0.3949,2532.1,2532.0,0.3773]
[1726839617863,1.37004,2532.5,2531.8,0.3859]
[1726839618057,0.39493,2532.0,2531.8,0.3859]
[1726839619060,4.19499,2532.3,2531.8,0.3859]
[1726839619267,0.39494,2531.9,2531.6,0.7931]
[1726839619473,0.39496,2531.8,2531.6,0.7931]
[1726839619773,0.9873,2532.1,2531.6,0.7931]
[1726839619976,0.39495,2531.8,2531.6,0.7931]
[1726839620464,0.9873,2532.1,2531.6,0.7931]
[1726839620671,3.2078,2532.3,2531.6,0.7931]
[1726839620861,0.39494,2531.9,2531.6,1.18808]
[1726839621061,0.39494,2531.9,2531.6,0.7931]
[1726839621260,4.19502,2532.3,2531.6,0.7931]
[1726839621483,0.39496,2531.8,2531.6,0.7931]
[1726839621669,0.98723,2532.2,2531.6,0.7931]
[1726839621971,0.39489,2532.2,2531.9,0.39493]
[1726839622171,3.5918,2532.6,2532.2,0.39488]
[1726839622465,3.2078,2532.6,2532.0,3.79]
[1726839622670,0.3948,2532.8,2532.5,0.39483]
[1726839622857,0.79709,2532.9,2532.5,0.39484]
[1726839623061,0.39481,2532.8,2532.4,0.39485]
[1726839623259,0.3948,2532.8,2532.5,0.39484]
[1726839623458,0.3948,2532.8,2532.3,3.79]
[1726839623662,0.39483,2532.6,2532.3,0.39487]
[1726839623865,0.39484,2532.6,2532.2,1.19928]
[1726839624075,0.39482,2532.7,2532.3,0.39487]
[1726839624268,0.39486,2532.5,2532.2,0.8044]
[1726839624470,0.39486,2532.4,2532.2,0.8044]
[1726839624679,3.2078,2533.0,2532.2,0.8044]
[1726839624970,4.121,2533.1,2532.1,3.2078]
[1726839624971,0.39489,2532.2,2532.1,3.2078]
[1726839625162,3.2078,2532.6,2531.7,4.0258]
[1726839625366,3.2078,2532.3,2531.7,3.6159]
[1726839625565,0.39495,2531.8,2531.7,3.6159]
[1726839625765,0.98723,2532.2,2531.7,3.6159]
[1726839625766,0.39493,2532.0,2531.7,3.6159]
[1726839625972,0.98723,2532.2,2531.7,3.6159]
[1726839626267,0.3841,2532.4,2531.7,3.6159]
[1726839626468,0.39487,2532.3,2531.7,3.6159]
[1726839626676,0.3841,2532.4,2532.0,0.39491]
[1726839626863,0.3841,2532.4,2531.7,3.6159]
[1726839626864,0.3841,2532.4,2531.9,0.39492]
[1726839627067,0.39488,2532.3,2531.7,3.6159]
[1726839627572,0.39491,2532.1,2531.8,0.39495]
[1726839627774,0.39489,2532.2,2531.8,0.39495]
[1726839628076,0.3949,2532.2,2531.8,0.39495]
[1726839628578,0.3949,2532.1,2531.8,0.39495]
[1726839628767,0.39489,2532.2,2531.7,3.6159]
[1726839629068,0.3806,2532.5,2531.9,0.39493]
[1726839629274,0.39489,2532.2,2531.9,0.39493]
[1726839629475,0.39488,2532.3,2531.9,0.39493]
[1726839629881,0.39488,2532.3,2531.7,3.6159]
[1726839630062,0.39488,2532.3,2532.0,0.39492]
[1726839630264,0.39489,2532.2,2531.9,0.39493]
[1726839630473,0.39488,2532.3,2531.7,3.6159]
[1726839630772,0.39488,2532.3,2532.0,0.39492]
[1726839630970,0.39489,2532.2,2531.9,0.39492]
[1726839631279,0.39489,2532.3,2532.0,1.17481]
[1726839631467,0.3806,2532.5,2532.0,0.7799]
[1726839631468,0.39489,2532.2,2532.0,0.7799]
[1726839631770,0.39488,2532.3,2532.0,1.17482]
[1726839632073,0.3806,2532.5,2532.1,0.3949]
[1726839632268,0.39489,2532.3,2532.0,1.17481]
[1726839632468,0.39487,2532.4,2532.1,0.3949]
[1726839632767,0.3922,2532.7,2532.2,0.39488]
[1726839633076,0.3922,2532.7,2532.0,3.9877]
[1726839633077,0.39482,2532.7,2532.3,0.391]
[1726839633265,4.58857,2532.9,2532.6,0.39482]
[1726839633266,3.99639,2532.9,2532.6,0.39482]
[1726839633472,0.39483,2532.6,2532.3,0.391]
[1726839633867,3.6016,2532.9,2532.3,0.391]
[1726839634179,0.3949,2532.2,2532.0,3.9877]
[1726839634370,0.3949,2532.1,2532.0,0.7799]
[1726839634565,0.98721,2532.3,2532.0,0.7799]
[1726839634763,0.39489,2532.2,2532.0,0.7799]
[1726839634975,0.3949,2532.2,2532.0,0.7799]
[1726839635875,0.98716,2532.4,2532.0,0.7799]
[1726839636074,0.98716,2532.4,2531.8,0.391]
[1726839636075,0.39492,2532.0,2531.8,0.391]
[1726839636270,0.39491,2532.1,2531.8,0.391]
[1726839636581,0.39491,2532.1,2531.8,0.78595]
[1726839637270,4.121,2532.8,2532.0,3.2078]
[1726839637476,0.39487,2532.4,2532.1,0.3949]
[1726839637778,0.39487,2532.4,2532.2,0.39489]
[1726839637982,1.3625,2532.8,2532.1,0.3949]
[1726839638173,0.39486,2532.4,2531.8,1.37837]
[1726839638670,0.9871,2532.6,2532.1,0.3949]
[1726839638870,0.3949,2532.2,2531.9,0.39492]
[1726839639067,0.3949,2532.2,2532.0,0.39492]
[1726839639276,0.39493,2532.0,2531.8,0.391]
[1726839639475,0.98725,2532.2,2531.8,0.78595]
[1726839639677,8.2865,2532.8,2531.7,3.5916]
[1726839639678,0.39495,2531.8,2531.7,3.5916]
[1726839639877,0.39498,2531.6,2531.5,4.198]
[1726839640072,0.39498,2531.6,2531.3,0.79092]
[1726839640373,0.9874,2531.8,2531.4,0.39501]
[1726839640580,0.39498,2531.7,2531.4,0.39501]
[1726839640976,0.9874,2531.8,2531.4,0.39501]
[1726839641179,0.39499,2531.6,2531.3,0.79092]
[1726839641486,0.9874,2531.8,2531.3,0.3959]
[1726839641875,0.39499,2531.6,2531.3,0.79092]
[1726839643087,0.39498,2531.7,2531.4,0.39501]
[1726839643678,0.39498,2531.6,2531.3,0.79092]
[1726839643876,0.39498,2531.7,2531.4,0.39501]
[1726839644170,0.98736,2531.9,2531.4,0.39501]
[1726839644376,0.39498,2531.7,2531.4,0.39501]
[1726839644783,0.39501,2531.5,2531.3,0.3959]
[1726839645187,2.35836,2532.1,2531.3,0.3959]
[1726839645374,2.35836,2532.1,2531.0,0.3948]
[1726839645375,0.39506,2531.2,2531.0,0.3948]
[1726839645881,0.39505,2531.2,2531.0,0.3948]
[1726839646581,0.98752,2531.5,2531.0,0.3948]
[1726839646884,0.39505,2531.2,2531.0,0.3948]
[1726839647079,0.39506,2531.1,2531.0,0.3948]
[1726839648383,0.98759,2531.3,2531.0,0.3948]
[1726839648584,0.39506,2531.1,2531.0,0.3948]
[1726839648783,0.39512,2530.7,2530.6,0.3905]
[1726839648979,0.39517,2530.4,2530.3,3.2078]
[1726839649187,3.2078,2530.8,2530.0,1.1709]
[1726839649392,0.39511,2530.8,2530.5,0.39515]
[1726839649592,0.39511,2530.8,2530.4,0.39516]
[1726839649989,0.3739,2531.0,2530.4,0.39516]
[1726839650184,1.36161,2531.0,2530.4,0.39516]
[1726839650489,0.3739,2531.0,2530.7,0.39511]
[1726839650698,3.2078,2531.4,2530.8,3.5883]
[1726839650886,0.39504,2531.3,2531.0,0.39507]
[1726839651082,3.2078,2531.4,2530.9,0.7963]
[1726839651583,0.98762,2531.2,2530.8,0.3805]
[1726839651784,0.39509,2530.9,2530.8,0.3805]
[1726839651996,0.39509,2530.9,2530.5,3.2078]
[1726839651997,0.39512,2530.7,2530.5,3.2078]
[1726839652188,0.39511,2530.8,2530.5,3.2078]
[1726839652393,0.39511,2530.8,2530.4,0.39516]
[1726839652588,0.3951,2530.9,2530.3,1.1745]
[1726839652783,0.3951,2530.9,2530.6,0.39513]
[1726839652983,0.3894,2531.1,2530.3,1.1745]
[1726839653179,0.3951,2530.9,2530.6,0.39513]
[1726839653385,0.39508,2531.0,2530.7,0.39512]
[1726839653594,0.3894,2531.1,2530.5,3.2078]
[1726839653794,0.3894,2531.1,2530.7,0.39511]
[1726839653987,0.39507,2531.1,2530.5,3.2078]
[1726839654189,0.7995,2531.5,2531.0,0.39507]
[1726839654494,0.7995,2531.5,2531.1,0.3771]
[1726839654495,0.39504,2531.2,2531.1,0.3771]
[1726839654888,0.98762,2531.2,2530.4,3.2078]
[1726839655086,0.98762,2531.2,2530.6,0.77222]
[1726839655289,0.39511,2530.8,2530.6,0.3771]
[1726839655498,0.98768,2531.1,2530.6,0.3771]
[1726839655695,0.98766,2531.1,2530.6,0.3771]
[1726839655894,0.39511,2530.8,2530.6,0.3771]
[1726839656496,0.39512,2530.7,2530.6,0.3771]
[1726839656797,0.98771,2531.0,2530.4,3.2078]
[1726839657006,0.98771,2531.0,2530.2,0.39519]
[1726839657007,0.39516,2530.5,2530.2,0.39519]
[1726839657395,0.7922,2530.9,2530.1,3.9976]
[1726839657589,0.39516,2530.5,2530.2,0.39519]
[1726839657795,0.7922,2530.9,2530.3,0.80018]
[1726839658001,0.39514,2530.6,2530.3,0.80018]
[1726839658199,0.39517,2530.4,2530.3,0.405]
[1726839658496,6.9978,2530.8,2530.3,0.405]
[1726839658497,0.39517,2530.5,2530.3,0.405]
[1726839658696,0.39517,2530.5,2530.1,0.7898]
[1726839658897,4.1956,2530.8,2530.3,0.39518]
[1726839658898,0.39513,2530.7,2530.3,0.39518]
[1726839659102,3.2078,2530.8,2530.1,3.9976]
[1726839659103,0.39515,2530.6,2530.1,3.9976]
[1726839659301,0.39515,2530.6,2530.1,4.39281]
[1726839659606,0.39511,2530.8,2530.1,3.9976]
[1726839659795,0.39511,2530.8,2530.4,0.39516]
[1726839660006,0.7922,2530.9,2530.1,3.9976]
[1726839660211,1.1873,2530.9,2530.5,0.39514]
[1726839660409,0.7922,2530.9,2530.6,0.39513]
[1726839660708,3.2078,2531.2,2530.4,3.2078]
[1726839660709,3.60285,2531.2,2530.4,3.2078]
[1726839661007,3.60285,2531.2,2530.3,0.98794]
[1726839661008,3.2078,2531.2,2530.6,3.2078]
[1726839661213,0.39507,2531.1,2530.7,1.16102]
[1726839661403,0.3951,2530.9,2530.7,0.7659]
[1726839661708,0.9877,2531.0,2530.1,4.198]
[1726839661903,0.39517,2530.4,2530.3,0.3821]
[1726839662102,1.74378,2530.8,2530.1,0.4103]
[1726839662103,0.3952,2530.3,2530.1,0.4103]
[1726839662312,0.39518,2530.4,2530.1,0.4103]
[1726839662610,4.19565,2530.6,2530.1,0.4103]
[1726839662611,0.39516,2530.5,2530.1,0.4103]
[1726839662810,0.756,2530.8,2530.1,0.80551]
[1726839663006,0.39518,2530.4,2530.1,0.4103]
[1726839663208,0.98781,2530.7,2530.1,0.4103]
[1726839663412,0.39517,2530.4,2530.1,0.4103]
[1726839663613,0.39519,2530.3,2530.0,0.3821]
[1726839663810,0.39516,2530.5,2530.0,0.77733]
[1726839664013,0.39515,2530.6,2530.1,0.3952]
[1726839664403,0.756,2530.8,2530.0,0.77732]
[1726839664404,0.39516,2530.5,2530.0,0.77732]
[1726839664611,0.756,2530.8,2530.1,0.39522]
[1726839664919,0.756,2530.8,2530.0,0.3821]
[1726839665113,0.39521,2530.2,2530.0,0.3821]
[1726839665306,0.98789,2530.5,2530.0,0.3821]
[1726839665511,0.3952,2530.3,2530.0,0.3821]